[Event "Saint Louis Super Swiss 2023"]
[Site "Saint Louis"]
[Date "2023.03.16"]
[Round "9.5"]
[White "Antipov, Mikhail Al."]
[Black "Hakobyan, Aram"]
[Result "1-0"]
[ECO "C47"]
[WhiteElo "2581"]
[BlackElo "2620"]
[Annotator "TA"]
[PlyCount "75"]
[EventDate "2023.03.12"]
[EventType "swiss"]
[EventCountry "USA"]
[SourceTitle "playchess.com"]
[Source "ChessBase"]
[SourceQuality "1"]
[TimeControl "5400+30"]

{[%evp 9,75,0,0,8,5,0,3,0,12,0,0,0,14,0,15,8,0,0,0,0,38,25,28,19,90,85,80,98,239,247,240,240,245,238,254,211,325,285,352,352,379,263,521,520,556,541,583,566,715,770,760,754,742,734,741,544,1299,620,6141,6128,6061,6045,6116,1857,6025,5637,5115,5066]} 1. e4 {[%emt 0:09:19]} e5 {[%emt 0:00:06]} 2. Nf3 {[%emt 0:00:09]} Nc6 {[%emt 0:00:33]} 3. Nc3 {[%emt 0:01:27]} Nf6 {[%emt 0:00:07]} 4. h3 {[%emt 0:00:03]} d5 {[%emt 0:00:57]} 5. exd5 {[%emt 0:00:40]} Nxd5 {[%emt 0:00:06]} 6. Bb5 {[%emt 0:00:04] C47: Scotch Four Knights and Four Knights with 4 g3.} Nxc3 {[%emt 0:00:15]} 7. bxc3 {[%emt 0:00:01]} Bd6 {[%emt 0:00:12]} 8. d4 {[%emt 0:00:09] The position is equal.} exd4 {[%emt 0:00:17]} 9. cxd4 {[%emt 0:00:04]} O-O {[%emt 0:00:42]} 10. O-O {[%emt 0:00:04]} h6 {[%emt 0:02:47] Dodges Bg5} 11. Bb2 {[%emt 0:15:46] [#]} a6 $146 {[%emt 0:16:59]} ({Predecessor:} 11... Bd7 12. c4 Re8 13. c5 Bf8 14. d5 Ne7 15. Bc4 Ng6 16. Qd4 Qe7 17. d6 cxd6 {½-½ Chigaev,M (2631)-Belyakov,B (2448) Titled Tuesday intern op 26th Jan blitz 2021 (5)}) 12. Bd3 {[%emt 0:08:25]} Nb4 {[%emt 0:31:41]} 13. c4 {[%emt 0:12:31][%cal Bc2c4,Bc4c5][%mdl 32]} Nxd3 {[%emt 0:05:07]} 14. Qxd3 {[%emt 0:00:14]} Qf6 {[%emt 0:00:53][%cal Ob7b5]} 15. Qb3 $1 {[%emt 0:02:02]} Re8 {[%emt 0:13:31]} 16. Rfe1 {[%emt 0:03:02]} Bd7 {[%emt 0:06:32]} (16... Bf5 $11 {remains equal.}) 17. c5 $16 {[%emt 0:02:19] Threatens to win with d5.} Bf4 {[%emt 0:02:06]} 18. d5 $1 {[%emt 0:03:22] Against Qc6} (18. Qxb7 Qg6 $11) 18... Qg6 {[%emt 0:00:17] [#] This move loses the game for Black.} (18... Qf5 $16) 19. Be5 $1 $18 {[%emt 0:01:40]} Bg5 {[%emt 0:04:32]} 20. Qxb7 {[%emt 0:21:11] Strongly threatening h4.} Bxh3 {[%emt 0:00:53][%cal Og5d2] [#]} 21. Bg3 $1 {[%emt 0:01:07]} (21. gxh3 Bf4+ 22. Kf1 (22. Kh1 Qh5 $11) 22... Qd3+ 23. Kg2 Qg6+ 24. Kh1 Qh5 $11) 21... Bf5 {[%emt 0:07:59]} 22. Qxc7 {[%emt 0:01:14] Rxe8+ is the strong threat.} Bf6 {[%emt 0:00:13]} (22... Be4 $142 23. Nxg5 hxg5) 23. Ne5 {[%emt 0:01:42]} Bxe5 {[%emt 0:02:46]} 24. Rxe5 {[%emt 0:00:06]} (24. Bxe5 Be4 25. Bg3 Bxd5 $14) 24... h5 {[%emt 0:00:47] Black is weak on the dark squares} 25. Rae1 {[%emt 0:00:58]} Red8 {[%emt 0:01:02]} (25... f6) 26. d6 {[%emt 0:02:44] White is clearly winning.} Rac8 {[%emt 0:00:01]} 27. Qe7 {[%emt 0:02:36]} Rd7 {[%emt 0:02:02]} 28. Qh4 {[%emt 0:00:06] Hoping for Re8+.} f6 {[%emt 0:00:35]} 29. Qc4+ {[%emt 0:00:42]} Kh7 {[%emt 0:00:02] [#]} 30. Rxf5 $1 {[%mdl 512]} Qxf5 {[%emt 0:00:01]} 31. c6 {[%emt 0:01:05]} (31. Qxa6 Rxc5 32. Qa4 Qg4 $19) 31... Rdd8 {[%emt 0:00:36]} 32. c7 {[%emt 0:02:23]} Re8 {[%emt 0:00:59]} 33. Rc1 {[%emt 0:01:09]} (33. Rxe8 $142 Rxe8 34. Qf7 (34. Qxa6 $2 Re1+ $19) 34... Re1+ 35. Kh2) 33... Re4 {[%emt 0:00:15] [#]} 34. Qxe4 {[%emt 0:02:02][%mdl 576] Deflection, Promotion} Qxe4 {[%emt 0:00:01]} 35. d7 {[%emt 0:00:07]} Qa8 {[%emt 0:00:39]} 36. Rd1 {[%emt 0:00:44]} (36. dxc8=Q $142 Qxc8 37. Rb1) 36... h4 {[%emt 0:00:01]} 37. dxc8=Q {[%emt 0:00:29][%mdl 64] Promotion} (37. d8=R $2 {loses.} hxg3 38. Rxc8 Qxc8 $19) 37... Qxc8 {[%emt 0:00:02]} 38. Rd8 {[%emt 0:00:10] Ingenious play by Antipov!   Weighted Error Value: White=0.52/Black=0.43} (38. Bxh4 $2 {is the wrong capture.} Qxc7 39. Rd3 g5 $19) 1-0

[Event "Saint Louis Super Swiss 2023"]
[Site "Saint Louis"]
[Date "2023.03.16"]
[Round "9.6"]
[White "Grabinsky, Aaron"]
[Black "Nyzhnyk, Illya"]
[Result "0-1"]
[ECO "B40"]
[WhiteElo "2405"]
[BlackElo "2654"]
[Annotator "TA"]
[PlyCount "76"]
[EventDate "2023.03.12"]
[EventType "swiss"]
[EventCountry "USA"]
[SourceTitle "playchess.com"]
[Source "ChessBase"]
[SourceQuality "1"]
[TimeControl "5400+30"]

{[%evp 9,76,0,6,16,16,4,27,4,17,12,22,22,18,0,0,0,0,0,0,-13,0,-69,-24,-28,-37,-29,-29,-29,-29,-24,-30,-30,-30,-27,-21,-22,-12,-18,-12,-20,-10,-50,-55,-56,-55,-48,-54,-74,-56,-198,-194,-215,-201,-262,-247,-278,-264,-261,-265,-587,-379,-482,-494,-609,-600,-1141,-1068,-1256,-1248]} 1. e4 {[%emt 0:02:38]} c5 {[%emt 0:00:16]} 2. Nf3 {[%emt 0:00:13]} e6 {[%emt 0:00:05]} 3. b3 {[%emt 0:00:29]} b6 {[%emt 0:00:43]} 4. Bd3 {[%emt 0:00:06]} Bb7 {[%emt 0:00:33]} 5. O-O {[%emt 0:00:15]} d6 {[%emt 0:02:15]} 6. Bb2 {[%emt 0:00:22] B40: Sicilian: 2...e6, Unusual lines.} Nf6 {[%emt 0:00:29]} 7. Re1 {[%emt 0:01:22]} Nbd7 {[%emt 0:00:08]} 8. c3 {[%emt 0:01:32] White has an edge.} g6 $5 {[%emt 0:03:30][%mdl 4] Exploring less charted territory.} 9. Bc2 {[%emt 0:00:26]} Bg7 {[%emt 0:00:04]} 10. d4 {[%emt 0:00:31]} O-O {[%emt 0:00:05] [#]} 11. c4 $146 {[%emt 0:04:37]} ({Predecessor:} 11. Nbd2 Qc7 12. Rc1 Rac8 13. Bb1 Rfe8 14. Qe2 Qb8 15. c4 cxd4 16. Bxd4 Nc5 17. b4 {0-1 Leszko,B (2230)-Farago,I (2350) Budapest FS08 IM 2019 (6)}) 11... d5 {[%emt 0:07:16][%cal Rd5e4]} 12. cxd5 {[%emt 0:06:58]} exd5 {[%emt 0:00:33]} 13. e5 {[%emt 0:02:31]} Ne8 {[%emt 0:11:05]} 14. Nc3 {[%emt 0:04:01]} Nc7 {[%emt 0:00:14]} 15. a3 {[%emt 0:10:07]} (15. a4 $11) 15... cxd4 {[%emt 0:09:23]} 16. Qxd4 {[%emt 0:01:41]} Ne6 {[%emt 0:00:04]} 17. Qd1 {[%emt 0:02:44] [#]} d4 $1 {[%emt 0:10:18]} 18. Nxd4 {[%emt 0:01:21]} Nxd4 {[%emt 0:00:03]} 19. Qxd4 {[%emt 0:00:08]} Nxe5 {[%emt 0:00:03]} 20. Qxd8 {[%emt 0:04:20]} Rfxd8 {[%emt 0:00:40]} 21. Rad1 {[%emt 0:02:23] Against Nd3} Rxd1 $40 {[%emt 0:00:07][%mdl 128] Black mounts an attack.} 22. Rxd1 {[%emt 0:07:08]} Rc8 {[%emt 0:00:37] aiming for ...Ng4.} 23. Be4 {[%emt 0:08:00]} Bxe4 {[%emt 0:00:24]} 24. Nxe4 {[%emt 0:00:05]} f5 {[%emt 0:00:03]} 25. Ng5 {[%emt 0:07:30] [#]} Nd3 $1 {[%emt 0:04:31][%mdl 64] Discovered Attack} 26. Rxd3 {[%emt 0:09:49][%cal Od3d7]} Bxb2 $15 {[%emt 0:00:09][%mdl 4096] Endgame KRB-KRN} 27. h4 {[%emt 0:00:16]} h6 {[%emt 0:00:05]} 28. Nf3 {[%emt 0:00:26]} Bxa3 {[%emt 0:00:26]} 29. Rd7 {[%emt 0:00:05] White does not recover from this.} ({White should play} 29. Ne5 $15) 29... a5 $19 {[%emt 0:00:17][%cal Ba7a5,Ba5a4,Ba4a3][%mdl 32]} 30. Ne5 {[%emt 0:00:31]} Rc3 {[%emt 0:00:26]} 31. Nxg6 {[%emt 0:03:18]} Rxb3 {[%emt 0:00:05]} 32. Nf4 {[%emt 0:00:38]} a4 {[%emt 0:00:51]} 33. Nd5 {[%emt 0:00:30]} Kf8 {[%emt 0:00:08] White must now prevent ...Bc5.} 34. f3 $2 {[%emt 0:03:44]} (34. Kf1) 34... b5 {[%emt 0:05:25]} 35. Rd8+ {[%emt 0:03:27]} Kf7 {[%emt 0:00:06] Black is clearly winning.} 36. Ra8 {[%emt 0:00:05]} Bc5+ {[%emt 0:00:29]} 37. Kh2 {[%emt 0:00:56]} a3 {[%emt 0:00:16] And now ...Rd3 would win.} 38. Ra6 {[%emt 0:01:05]} Rd3 {[%emt 0:00:45] Weighted Error Value: White=0.56/Black=0.11 (very precise)} 0-1

[Event "Saint Louis Super Swiss 2023"]
[Site "Saint Louis"]
[Date "2023.03.17"]
[Round "9.7"]
[White "Bruzon Batista, Lazaro"]
[Black "Daggupati, Balaji"]
[Result "1-0"]
[ECO "D11"]
[WhiteElo "2610"]
[BlackElo "2513"]
[Annotator "TA"]
[PlyCount "87"]
[EventDate "2023.03.12"]
[EventType "swiss"]
[EventCountry "USA"]
[TimeControl "5400+30"]

{[%evp 9,87,13,14,4,0,3,-1,-22,14,16,35,28,41,34,40,21,32,26,27,16,26,32,64,36,41,37,28,47,51,44,163,168,152,160,314,312,550,539,577,418,610,553,541,510,1140,587,663,626,615,594,537,268,300,316,310,301,297,278,319,290,363,288,309,283,302,310,287,293,318,285,626,601,715,558,521,484,2341,922,29995,183]} 1. d4 {[%emt 0:00:19]} d5 {[%emt 0:02:41]} 2. Nf3 {[%emt 0:02:27]} Nf6 {[%emt 0:00:05]} 3. c4 {[%emt 0:00:21]} c6 {[%emt 0:00:05]} 4. Nbd2 {[%emt 0:01:06]} Bf5 {[%emt 0:01:27]} 5. Nh4 {[%emt 0:00:15]} Be4 {[%emt 0:02:45]} 6. e3 {[%emt 0:02:48] D11: Slav Defence: 3 Nf3 sidelines and 3...Nf6 4 e3 Bg4.} e6 {[%emt 0:02:07]} 7. Be2 {[%emt 0:00:06]} h6 {[%emt 0:02:14]} 8. Nxe4 {[%emt 0:03:49] The position is equal.} Nxe4 {[%emt 0:00:47]} 9. Nf3 {[%emt 0:00:05]} Nd7 {[%emt 0:05:37]} 10. O-O {[%emt 0:01:29]} Bd6 {[%emt 0:00:23] [#]} 11. Qc2 $146 {[%emt 0:05:51]} ({Predecessor:} 11. Nd2 Nxd2 12. Bxd2 O-O 13. Bd3 Qe7 14. Qe2 e5 15. cxd5 cxd5 16. e4 Rae8 17. exd5 {0-1 Kourousis,E (2191)-Lintchevski,D (2450) EU-ch 9th Plovdiv 2008 (8)}) 11... O-O {[%emt 0:06:58]} 12. b3 {[%emt 0:02:08][%cal Bb2b3,Bb3b4][%mdl 32]} Qe7 {[%emt 0:04:06]} 13. a3 {[%emt 0:04:40]} f5 {[%emt 0:07:57]} 14. b4 {[%emt 0:06:18]} a6 {[%emt 0:02:34]} 15. Bb2 {[%emt 0:03:35]} Bc7 {[%emt 0:19:06]} 16. Bd3 {[%emt 0:04:37]} g5 {[%emt 0:04:56]} 17. Ne5 {[%emt 0:05:05]} Nxe5 {[%emt 0:06:23]} 18. dxe5 {[%emt 0:00:12] Threatens to win with f3.} g4 {[%emt 0:00:11]} 19. f3 {[%emt 0:02:50]} Ng5 {[%emt 0:03:29] White now steadily converts the win.} (19... gxf3 $14 20. gxf3 Ng5) 20. fxg4 $18 {[%emt 0:09:33]} fxg4 {[%emt 0:01:03]} 21. Bd4 {[%emt 0:06:18] aiming for cxd5.} Qg7 $2 {[%emt 0:09:38]} (21... Rxf1+ $16 22. Rxf1 Rf8) 22. Rf6 $1 {[%emt 0:01:49]} Rxf6 {[%emt 0:00:20]} (22... Bxe5 $2 23. Rg6 $18) (22... dxc4 23. Bxc4 (23. Rg6 cxd3 24. Rxg7+ Kxg7 $16) 23... Rxf6 24. exf6 Qf7) 23. exf6 {[%emt 0:00:04]} Qd7 {[%emt 0:00:04]} 24. Rf1 {[%emt 0:02:21]} e5 {[%emt 0:02:14]} (24... Rf8 $142 25. cxd5 cxd5) 25. Bf5 {[%emt 0:02:24]} Qf7 {[%emt 0:03:46]} 26. Bg6 {[%emt 0:02:33] A strong pair of Bishops.} Qe6 {[%emt 0:00:34]} (26... Qf8 $142 27. Bc5 Bd6) 27. Bc5 {[%emt 0:03:51]} e4 {[%emt 0:02:53]} 28. cxd5 {[%emt 0:01:18]} Qxd5 {[%emt 0:00:58]} 29. f7+ {[%emt 0:08:20]} Kg7 {[%emt 0:00:05] [#]} 30. Bxe4 {[%emt 0:04:08]} Nxe4 {[%emt 0:01:11]} 31. f8=Q+ {[%emt 0:00:09]} Rxf8 {[%emt 0:00:05]} 32. Bxf8+ {[%emt 0:00:04]} ({Stronger than} 32. Rxf8 b6 33. Re8 Bxh2+ 34. Kxh2 (34. Kh1 Nxc5 35. Qb2+ Kf7 $11) 34... Qh5+ 35. Kg1 Qxe8 36. Bxb6 Qe6 $11) 32... Kg6 {[%emt 0:03:11]} 33. Bc5 {[%emt 0:02:02]} Qe5 {[%emt 0:02:32][%csl Gc7][%cal Re5h2] [#]} 34. g3 $1 {[%emt 0:00:49] And now Rf4 would win.} Kh5 {[%emt 0:00:04]} 35. Bd4 {[%emt 0:09:40]} Qd5 {[%emt 0:00:05]} 36. a4 {[%emt 0:02:57][%cal Ba3a4,Ba4a5][%mdl 32]} Bd6 {[%emt 0:01:20] [#]} 37. Bc5 $1 {[%emt 0:00:26]} Bc7 {[%emt 0:01:05]} 38. a5 {[%emt 0:00:16]} Qe6 {[%emt 0:01:15]} 39. Qd3 {[%emt 0:00:40]} Qe5 $2 {[%emt 0:01:46]} (39... Kg5 40. Qc2 Kh5) 40. Rf7 {[%emt 0:01:10][%cal Bf1f7,Bf7f5,Bf5g5][%mdl 32]} Ng5 {[%emt 0:01:26]} 41. Rf5 {[%emt 0:00:54]} Qa1+ {[%emt 0:00:02]} 42. Qf1 {[%emt 0:00:16]} Qb2 {[%emt 0:00:02]} (42... Qxf1+ $142 43. Rxf1 Kg6) 43. Be7 {[%emt 0:01:17]} (43. Rxg5+ $142 Kxg5 44. Bd4) 43... Qc3 {[%emt 0:00:28] [#]} 44. Rxg5+ $1 {[%emt 0:00:19][%mdl 576] Remove Defender. Artfully played by Bruzon Batista.   Weighted Error Value: White=0.48/Black=0.61} 1-0

[Event "Saint Louis Super Swiss 2023"]
[Site "Saint Louis"]
[Date "2023.03.16"]
[Round "9.8"]
[White "Akobian, Varuzhan"]
[Black "Kavutskiy, Konstantin"]
[Result "1/2-1/2"]
[ECO "E95"]
[WhiteElo "2591"]
[BlackElo "2405"]
[Annotator "TA"]
[PlyCount "137"]
[EventDate "2023.03.12"]
[EventType "swiss"]
[EventCountry "USA"]
[SourceTitle "playchess.com"]
[Source "ChessBase"]
[SourceQuality "1"]
[TimeControl "5400+30"]

{[%evp 15,137,47,55,51,47,42,48,28,25,21,35,8,14,23,60,62,63,41,41,45,40,54,49,49,43,45,53,53,54,45,33,0,0,0,42,42,66,0,27,25,39,12,86,37,34,11,11,16,13,8,7,0,14,14,14,14,14,14,32,37,38,0,20,25,38,38,38,38,38,38,38,38,40,27,28,0,27,20,14,14,34,0,41,41,41,8,17,8,20,8,8,0,8,0,8,8,8,8,8,8,8,8,11,11,17,8,8,8,8,8,8,8,29,22,29,29,35,35,35,29,30,8,8,8]} 1. d4 {[%emt 0:00:02]} Nf6 {[%emt 0:03:57]} 2. c4 {[%emt 0:00:13]} g6 {[%emt 0:00:06]} 3. Nc3 {[%emt 0:00:10]} Bg7 {[%emt 0:00:11]} 4. e4 {[%emt 0:00:19]} d6 {[%emt 0:00:07]} 5. Nf3 {[%emt 0:00:11]} O-O {[%emt 0:00:10]} 6. Be2 {[%emt 0:00:55]} e5 {[%emt 0:00:21]} 7. O-O {[%emt 0:00:09]} h6 {[%emt 0:00:16]} 8. Re1 {[%emt 0:01:54]} Nbd7 {[%emt 0:00:15]} 9. Qc2 {[%emt 0:07:16] E95: King's Indian: Classical: 7...Nbd7 8 Re1.} Re8 {[%emt 0:02:14] is the new trend.} 10. dxe5 {[%emt 0:11:29]} dxe5 {[%emt 0:00:27] [#]} 11. Rd1 $146 {[%emt 0:01:55] White is slightly better.} ({Predecessor:} 11. Be3 c6 12. Na4 Qc7 13. c5 b5 14. cxb6 axb6 15. h3 Qb8 16. Red1 b5 17. Nc5 Nxc5 18. Bxc5 {1-0 Praggnanandhaa,R (2648)-Sindarov,J (2629) Olympiad-44 Chennai 2022 (10.3)}) 11... c6 {[%emt 0:01:39]} 12. Rb1 {[%emt 0:01:55]} Nh5 {[%emt 0:08:53]} 13. b4 {[%emt 0:00:56]} Nf4 {[%emt 0:01:05]} 14. Bf1 {[%emt 0:00:19]} Ne6 {[%emt 0:12:33]} 15. Be3 {[%emt 0:00:51]} b6 {[%emt 0:01:57]} 16. Na4 {[%emt 0:11:54]} (16. Qd2 $5 {[%cal Re3h6]}) 16... Qc7 {[%emt 0:01:36]} 17. c5 {[%emt 0:00:15]} bxc5 {[%emt 0:02:44]} 18. Nxc5 {[%emt 0:01:21]} Ndxc5 {[%emt 0:01:27]} 19. bxc5 {[%emt 0:00:07]} Rb8 {[%emt 0:09:17]} 20. Rb3 {[%emt 0:03:26]} Rxb3 {[%emt 0:03:49]} 21. axb3 {[%emt 0:01:22]} Rd8 {[%emt 0:00:08]} 22. Ra1 {[%emt 0:04:39]} Nd4 {[%emt 0:01:12]} 23. Bxd4 {[%emt 0:09:32]} exd4 {[%emt 0:00:05]} 24. Bd3 {[%emt 0:00:06]} Be6 {[%emt 0:00:40]} 25. b4 {[%emt 0:01:19]} Rb8 {[%emt 0:01:48]} 26. Qa4 {[%emt 0:05:02]} (26. Qd2 $1 $14) 26... g5 {[%emt 0:06:54]} 27. g3 {[%emt 0:01:50]} Bf6 {[%emt 0:00:43]} 28. Nd2 {[%emt 0:03:31]} ({Of course not} 28. Qxa7 Qxa7 29. Rxa7 Rxb4 $15) 28... Qb7 {[%emt 0:02:55]} (28... Kg7 $11) 29. Rb1 {[%emt 0:00:26]} (29. Qc2 $16) 29... Kg7 $14 {[%emt 0:00:24]} 30. Nc4 {[%emt 0:07:14]} Bxc4 {[%emt 0:02:37]} 31. Bxc4 {[%emt 0:01:05]} a5 $1 {[%emt 0:00:53] Black is weak on the light squares} 32. b5 {[%emt 0:01:47][%cal Ob5b6] next b6! is good for White.} Qe7 {[%emt 0:01:03][%csl LRc5,LRe4]} 33. Qxa5 {[%emt 0:02:56]} (33. Bd3 {simplifies} Qxc5 34. Qxa5 cxb5 35. Rxb5 Rxb5 36. Qxb5 Qxb5 37. Bxb5 Bd8 38. Kg2) 33... cxb5 {[%emt 0:01:15]} 34. Rxb5 {[%emt 0:02:46]} Rxb5 {[%emt 0:00:06]} 35. Qxb5 {[%emt 0:00:11]} Qxe4 $11 {[%emt 0:00:17][%mdl 4096] Endgame KQB-KQB} 36. c6 {[%emt 0:02:35] And now c7 would win.} Qe1+ {[%emt 0:01:59]} 37. Kg2 {[%emt 0:00:24]} Qe4+ {[%emt 0:00:06]} 38. Kg1 {[%emt 0:00:07]} Qe1+ {[%emt 0:00:05]} 39. Bf1 {[%emt 0:00:09] c7 is the strong threat.} Qe7 {[%emt 0:00:20]} 40. Qd5 {[%emt 0:03:19]} Kf8 {[%emt 0:01:35]} 41. Bc4 {[%emt 0:00:50]} Be5 {[%emt 0:01:56]} 42. Kg2 {[%emt 0:01:16]} Kg7 {[%emt 0:00:57]} 43. Kf3 {[%emt 0:00:35]} Kf8 {[%emt 0:03:45]} 44. Kg4 {[%emt 0:00:45]} Qf6 {[%emt 0:10:53]} 45. Qe4 {[%emt 0:05:28]} (45. Bd3 {is more complex.} Kg7 46. Qe4 Bc7 47. Kh5) 45... Kg7 {[%emt 0:01:59]} 46. Kh3 {[%emt 0:07:16] Active counter play!} (46. Bd3 {looks sharper.} Bc7 47. Kh5 Kf8 48. Qf5) 46... Bc7 {[%emt 0:01:20]} 47. Kg2 {[%emt 0:00:24]} Be5 {[%emt 0:04:14]} 48. Qd5 {[%emt 0:00:26] Black must now prevent Qd7.} (48. Bd3 {feels hotter.} Qe6 49. Bc2 Qf6 50. Qd5) 48... Bd6 {[%emt 0:00:58]} 49. Kf1 {[%emt 0:01:03]} Kf8 {[%emt 0:00:20]} 50. f3 {[%emt 0:00:53]} Kg7 {[%emt 0:00:50]} 51. Kg2 {[%emt 0:00:05]} (51. Ke2 {seems wilder.} h5 52. Kd3 Kf8 53. Ba2) 51... Kf8 {[%emt 0:00:36]} 52. Kh3 {[%emt 0:00:27]} h5 {[%emt 0:03:11]} 53. Qe4 {[%emt 0:00:55]} Kg7 {[%emt 0:00:08]} 54. Qd5 {[%emt 0:00:30]} Qe6+ {[%emt 0:02:31][%mdl 64] [#] Deflection} 55. Qxe6 {[%emt 0:00:14]} fxe6 {[%emt 0:00:04]} 56. Bxe6 {[%emt 0:00:05] KB-KB} d3 {[%emt 0:00:05]} 57. Kg2 {[%emt 0:00:15]} d2 {[%emt 0:00:11]} 58. Bb3 {[%emt 0:00:02]} Kf6 {[%emt 0:02:31]} 59. Kf2 {[%emt 0:01:38]} h4 {[%emt 0:00:18]} 60. gxh4 {[%emt 0:00:20]} gxh4 {[%emt 0:00:10]} 61. h3 {[%emt 0:00:15]} Bf4 {[%emt 0:01:41]} 62. Ke2 {[%emt 0:00:02]} Ke7 {[%emt 0:00:26]} 63. Kd3 {[%emt 0:00:13]} Kd6 {[%emt 0:00:17]} 64. Ke4 {[%emt 0:00:21]} Bg3 {[%emt 0:00:15]} 65. Ba4 $1 {[%emt 0:00:13]} d1=Q {[%emt 0:00:33][%mdl 64] [#] Deflection} 66. Bxd1 {[%emt 0:00:04] aiming for Ba4.} Kxc6 {[%emt 0:00:04]} 67. f4 {[%emt 0:00:08]} Kd6 {[%emt 0:00:14]} 68. Kf5 {[%emt 0:00:04]} Ke7 {[%emt 0:00:10]} 69. Kg5 {[%emt 0:00:11] Weighted Error Value: White=0.12 (very precise) /Black=0.10 (very precise)} 1/2-1/2

[Event "Saint Louis Super Swiss 2023"]
[Site "Saint Louis"]
[Date "2023.03.16"]
[Round "9.9"]
[White "Corrales Jimenez, Fidel"]
[Black "Dudin, Gleb"]
[Result "0-1"]
[ECO "B33"]
[WhiteElo "2489"]
[BlackElo "2469"]
[Annotator "TA"]
[PlyCount "88"]
[EventDate "2023.03.12"]
[EventType "swiss"]
[EventCountry "USA"]
[SourceTitle "playchess.com"]
[Source "ChessBase"]
[SourceQuality "1"]
[TimeControl "5400+30"]

{[%evp 25,88,31,39,28,32,31,30,31,35,41,47,48,47,50,79,78,53,50,45,54,51,52,90,35,57,37,57,20,16,0,0,-5,-15,-17,-8,-6,-3,-43,-17,-44,-34,-181,-180,-560,-552,-944,-946,-923,-577,-1525,-1509,-6827,-6340,-3635,-2648,-29990,-29991,-29991,-29992,-29994,-29993,-29995,-29996,-29996,-29997]} 1. e4 {[%emt 0:00:03]} c5 {[%emt 0:06:04]} 2. Nf3 {[%emt 0:00:22]} Nc6 {[%emt 0:00:16]} 3. d4 {[%emt 0:01:08]} cxd4 {[%emt 0:00:08]} 4. Nxd4 {[%emt 0:00:02]} Nf6 {[%emt 0:00:10]} 5. Nc3 {[%emt 0:00:06]} e5 {[%emt 0:00:09]} 6. Ndb5 {[%emt 0:00:16]} d6 {[%emt 0:00:09]} 7. Bg5 {[%emt 0:00:26]} a6 {[%emt 0:00:10]} 8. Na3 {[%emt 0:00:11]} b5 {[%emt 0:00:12]} 9. Bxf6 {[%emt 0:00:05]} gxf6 {[%emt 0:00:11]} 10. Nd5 {[%emt 0:00:07]} f5 {[%emt 0:00:07]} 11. Bd3 {[%emt 0:00:56]} Be6 {[%emt 0:00:19]} 12. O-O {[%emt 0:02:00]} Bxd5 {[%emt 0:05:03]} 13. exd5 {[%emt 0:00:04]} Ne7 $1 {[%emt 0:00:12]} 14. Re1 {[%emt 0:00:05] The modern move. B33: Sicilian: Pelikan and Sveshnikov Variations.} Bg7 {[%emt 0:00:13]} 15. c3 {[%emt 0:00:02]} O-O {[%emt 0:00:16]} 16. Qh5 {[%emt 0:00:33] White has an edge.} e4 {[%emt 0:04:39]} 17. Bf1 {[%emt 0:00:16]} Rc8 {[%emt 0:29:03]} 18. Nc2 $1 {[%emt 0:03:12]} Re8 {[%emt 0:09:49]} 19. a4 {[%emt 0:15:48] [#]} bxa4 $146 {[%emt 0:11:52]} ({Predecessor:} 19... Nxd5 20. axb5 axb5 21. Qxf5 Re5 22. Qh3 h5 23. Ra7 Rc7 24. Rxc7 Qxc7 25. Nd4 b4 {0-1 Goloshchapov,A (2533)-Moiseenko,A (2657) Cappelle op 22nd 2006 (5)}) 20. Rxa4 {[%emt 0:03:03]} Rb8 {[%emt 0:02:26]} 21. Ra2 {[%emt 0:04:59]} Nxd5 {[%emt 0:07:11]} 22. Qxf5 {[%emt 0:02:16]} Re5 {[%emt 0:00:08]} 23. Qh3 {[%emt 0:00:05]} Qb6 {[%emt 0:05:21] [#]} 24. Nd4 {[%emt 0:03:14] Inhibits Qb3.} (24. Rxa6 $6 Qxb2 25. Ne3 (25. Nd4 e3 $11 {[%mdl 64] Decoy}) 25... Qxc3 $11) (24. Bxa6 $2 Qb3 25. Nb4 Nxb4 $19) ({White should try} 24. b4 $1 $16) 24... a5 {[%emt 0:01:35]} 25. Nf5 {[%emt 0:03:12] Strongly threatening Qg4.} Ne7 {[%emt 0:01:24]} 26. Ne3 {[%emt 0:03:45] Black must now prevent Nc4.} d5 {[%emt 0:04:36] Prevents Nc4.} 27. Rd1 {[%emt 0:00:13]} f5 {[%emt 0:02:15]} 28. b4 {[%emt 0:04:50]} axb4 {[%emt 0:03:21]} 29. Ra6 {[%emt 0:00:02]} Qc5 {[%emt 0:02:10]} 30. cxb4 {[%emt 0:00:06]} Qxb4 {[%emt 0:00:05]} (30... Qc7 31. b5 $16) 31. Qg3 {[%emt 0:02:20]} (31. Ra7 d4 32. Nc4 Re6 $17) (31. Nc2 $5 {[%cal Rc2b4]} Qb2 32. Nd4 $15) 31... Rf8 {[%emt 0:01:40] Hoping for ...f4.} (31... Kh8 $5) 32. Nc2 {[%emt 0:01:06]} ({Wrong is} 32. Ra7 $2 f4 33. Qh3 (33. Qg4 $2 fxe3 34. fxe3 Qc5 $19) 33... fxe3 $19) 32... Qb2 {[%emt 0:00:31]} 33. Rd2 {[%emt 0:05:04] [#] Loses the game.} ({Better is} 33. Nd4 $15 f4 34. Qa3 Qxa3 35. Rxa3) 33... d4 $1 $36 {[%emt 0:02:09][%cal Bd5d4,Bd4d3][%mdl 2080] ...d3 would be deadly. Black is really pushing.} 34. Qf4 $2 {[%emt 0:02:53]} ({Avoid the trap} 34. Ra7 $2 d3 $19) (34. Qa3 {is tougher.} Qxa3 {[%mdl 64] Remove Defender} 35. Rxa3) 34... d3 {[%emt 0:00:27]} 35. Na3 {[%emt 0:00:01]} Qc1 {[%emt 0:00:53]} 36. g3 {[%emt 0:05:23]} Ng6 {[%emt 0:00:21][%cal Be7g6,Bg6f4,Bf4d5,Bd5e3][%mdl 32]} 37. Qe3 {[%emt 0:04:08][%cal Od2d3]} f4 {[%emt 0:00:20]} 38. gxf4 {[%emt 0:00:02]} Nxf4 {[%emt 0:00:09] ( -> ...Rg5+)} 39. h4 {[%emt 0:00:01] Prevents Rg5+} Nd5 {[%emt 0:00:46]} 40. Rxd3 {[%emt 0:03:36]} Nxe3 {[%emt 0:00:18] Black mates.} 41. Rxe3 {[%emt 0:00:02]} Ref5 {[%emt 0:00:42]} 42. Re2 {[%emt 0:00:46]} Bd4 {[%emt 0:00:23]} 43. Rc2 {[%emt 0:00:42]} Bxf2+ {[%emt 0:00:21]} 44. Kg2 {[%emt 0:00:14] [#]} Rg5+ $3 {[%emt 0:00:13] Weighted Error Value: White=0.86/Black=0.20 (precise)} 0-1